bitfinex/quotes_BTCUSD_20220101
["timestamp","ask_amount","ask_price","bid_price","bid_amount"]
[1640997609084,0.391196,46523.0,46520.0,0.02797202]
[1640997609287,0.64902787,46523.0,46520.0,0.02797202]
[1640997609486,1.287444,46521.0,46520.0,0.02797202]
[1640997609687,0.337444,46521.0,46520.0,0.02797202]
[1640997610087,0.337444,46521.0,46520.0,0.01307073]
[1640997610489,0.71602082,46521.0,46520.0,0.01307073]
[1640997610690,0.61602082,46521.0,46520.0,0.01307073]
[1640997611090,0.81602082,46521.0,46520.0,0.01307073]
[1640997611344,0.83426548,46521.0,46520.0,0.01307073]
[1640997611543,1.04445254,46521.0,46520.0,0.01307073]
[1640997611744,0.35568866,46521.0,46520.0,0.01307073]
[1640997612046,0.35568866,46521.0,46520.0,0.3375614]
[1640997612444,0.37427005,46521.0,46520.0,0.3375614]
[1640997612646,0.35602539,46521.0,46520.0,0.3375614]
[1640997613345,0.01858139,46521.0,46520.0,0.3375614]
[1640997613544,0.01880923,46521.0,46520.0,0.3375614]
[1640997613951,0.21,46528.0,46521.0,1.09]
[1640997614146,0.21,46528.0,46525.0,0.23573243]
[1640997614344,0.21,46528.0,46526.0,0.337395]
[1640997614544,0.22993385,46528.0,46523.0,0.24062871]
[1640997615385,0.22993385,46528.0,46522.0,0.00121599]
[1640997615589,0.21,46528.0,46522.0,0.00121599]
[1640997615986,0.21,46528.0,46518.0,0.01332965]
[1640997616988,0.21,46528.0,46524.0,0.09518189]
[1640997617388,0.21,46528.0,46525.0,0.10128109]
[1640997617587,0.21,46528.0,46525.0,0.09179348]
[1640997617789,0.21,46528.0,46526.0,0.337444]
[1640997617986,0.21,46528.0,46527.0,0.23174349]
[1640997618190,0.21,46528.0,46527.0,1.070666]
[1640997618387,0.21,46528.0,46527.0,0.200666]
[1640997619046,0.21,46528.0,46525.0,0.01328705]
[1640997619648,0.337444,46527.0,46525.0,0.01328705]
[1640997619846,0.21,46528.0,46525.0,0.01328705]
[1640997620448,0.01965703,46527.0,46525.0,0.01328705]
[1640997621054,0.01965703,46527.0,46526.0,1.327444]
[1640997621250,0.01965703,46527.0,46526.0,0.337444]
[1640997621650,0.21,46528.0,46526.0,0.337444]
[1640997621850,0.21,46528.0,46525.0,0.01328705]
[1640997622916,0.2,46528.0,46525.0,0.01328705]
[1640997625019,0.2,46528.0,46524.0,0.01329388]
[1640997626838,0.2,46528.0,46524.0,0.01532305]
[1640997628043,0.195,46528.0,46524.0,0.01532305]
[1640997629045,0.053746,46527.0,46524.0,0.02861616]
[1640997630394,0.053746,46527.0,46524.0,0.01532228]
[1640997630792,0.195,46528.0,46524.0,0.01532228]
[1640997631596,0.195,46528.0,46525.0,0.337444]
[1640997632093,0.195,46528.0,46527.0,1.41009601]
[1640997632395,0.195,46528.0,46527.0,0.200674]
[1640997632594,0.195,46528.0,46527.0,0.79444386]
[1640997633598,0.195,46528.0,46527.0,0.59376986]
[1640997633850,0.195,46528.0,46526.0,0.59376986]
[1640997634646,0.248744,46528.0,46526.0,0.59376986]
[1640997635348,0.248744,46528.0,46525.0,0.01329245]
[1640997636749,0.248744,46528.0,46526.0,0.337444]
[1640997637806,0.248744,46528.0,46525.0,0.60706231]
[1640997638206,0.248744,46528.0,46525.0,0.01329245]
[1640997640209,0.248744,46528.0,46524.0,0.01532221]
[1640997640411,0.195,46528.0,46526.0,0.28402369]
[1640997640611,0.195,46528.0,46524.0,0.01532221]
[1640997642053,0.195,46528.0,46525.0,0.337444]
[1640997642251,0.195,46528.0,46526.0,0.60479938]
[1640997642453,0.195,46528.0,46527.0,1.525324]
[1640997643354,0.15919557,46528.0,46527.0,1.52654183]
[1640997645287,0.15919557,46528.0,46527.0,0.42654183]
[1640997645488,0.15919557,46528.0,46527.0,0.20189183]
[1640997645689,0.15919557,46528.0,46527.0,0.83189183]
[1640997645886,0.15919557,46528.0,46527.0,0.20189183]
[1640997646688,0.15919557,46528.0,46527.0,0.77189183]
[1640997647090,0.00169993,46548.0,46546.0,1.47407543]
[1640997647389,0.00169993,46548.0,46546.0,0.79199143]
[1640997647390,0.0004,46548.0,46546.0,0.79199143]
[1640997647791,0.0004,46548.0,46546.0,1.73199143]
[1640997647988,0.0004,46548.0,46546.0,2.05771371]
[1640997648188,0.01752,46547.0,46546.0,2.05771371]
[1640997649046,2e-05,46547.0,46546.0,2.05897833]
[1640997650049,0.0110744,46557.0,46547.0,1.340566]
[1640997650248,0.0110744,46557.0,46552.0,0.00122386]
[1640997650650,0.0110744,46557.0,46555.0,0.0012494]
[1640997650853,0.0110744,46557.0,46556.0,0.337444]
[1640997651249,0.0196844,46557.0,46556.0,0.337444]
[1640997651454,0.0196844,46557.0,46556.0,0.62457593]
[1640997651649,0.0196844,46557.0,46556.0,0.396524]
[1640997651952,0.0197624,46557.0,46556.0,0.396524]
[1640997652150,0.0197624,46557.0,46556.0,0.62393455]
[1640997652350,0.0197624,46557.0,46556.0,0.91622578]
[1640997652592,0.0197624,46557.0,46556.0,0.39853995]
[1640997652792,0.0197624,46557.0,46556.0,0.33945995]
[1640997653993,2.08910646,46557.0,46556.0,0.00201595]
[1640997654197,0.3572064,46557.0,46556.0,0.00201595]
[1640997654598,0.0197624,46557.0,46556.0,0.00201595]
[1640997655001,0.30311911,46557.0,46556.0,0.00201595]
[1640997655193,0.64056311,46557.0,46556.0,0.00201595]
[1640997655594,0.30311911,46557.0,46556.0,0.00201595]
[1640997655792,0.0197624,46557.0,46556.0,0.00201595]
[1640997655995,0.0197624,46557.0,46556.0,1.20945995]
[1640997656250,6.24e-05,46557.0,46556.0,1.42945995]
[1640997656454,0.2453781,46558.0,46557.0,1.53409543]
[1640997656651,0.00476978,46560.0,46557.0,1.53409543]
[1640997656652,0.00476978,46560.0,46558.0,0.88124178]
[1640997656854,0.00476978,46560.0,46559.0,1.61486592]
[1640997657052,0.00476978,46560.0,46559.0,1.61611169]
[1640997657053,6.978e-05,46560.0,46559.0,1.61611169]
[1640997657651,6.978e-05,46560.0,46559.0,0.5981262]
[1640997658252,0.00867978,46560.0,46559.0,0.5981262]
[1640997658651,0.00867978,46560.0,46559.0,1.3881262]
[1640997658852,0.00867978,46560.0,46559.0,0.5981262]
[1640997659054,0.00867978,46560.0,46559.0,0.34068228]
[1640997659653,0.00867978,46560.0,46559.0,1.07068228]
[1640997660085,0.00867978,46560.0,46559.0,2.97537171]
[1640997660284,0.00861,46560.0,46559.0,2.97537171]
[1640997660487,0.00861,46560.0,46559.0,2.534796]
[1640997661885,0.00861,46560.0,46559.0,1.804796]
[1640997662284,0.00868301,46560.0,46559.0,1.804796]
[1640997662687,0.00868301,46560.0,46559.0,0.34068228]
[1640997663747,0.27003327,46560.0,46559.0,0.34068228]
[1640997663949,0.27003327,46560.0,46559.0,0.00326028]
[1640997665650,0.00868301,46560.0,46559.0,0.00326028]
[1640997666247,0.00868301,46560.0,46559.0,0.34070428]
[1640997666447,0.21868301,46560.0,46559.0,0.99070428]
[1640997667819,0.00868301,46560.0,46559.0,0.99070428]
[1640997669215,0.00868301,46560.0,46559.0,0.34070428]
[1640997669419,0.00868301,46560.0,46559.0,0.63070428]
[1640997670218,0.00868301,46560.0,46559.0,0.34070428]
[1640997672959,0.00868301,46560.0,46559.0,0.33945851]
[1640997673156,0.00868301,46560.0,46559.0,0.34066787]
[1640997674158,0.0004,46561.0,46560.0,0.99131699]
[1640997674356,0.0004,46561.0,46560.0,1.19155699]
[1640997675189,0.00901,46561.0,46560.0,1.19155699]
[1640997679245,0.00886975,46561.0,46560.0,1.19155699]
[1640997681350,0.18891627,46566.0,46561.0,1.59397482]
[1640997681548,0.03073515,46574.0,46561.0,1.64767182]
[1640997682146,0.00891,46567.0,46561.0,1.64767182]
[1640997682790,0.00891,46567.0,46561.0,0.68767182]
[1640997682994,2.49489186,46565.0,46561.0,0.337429]
[1640997683294,2.49489186,46565.0,46561.0,0.00320787]
[1640997683896,0.31890888,46563.0,46561.0,0.00320787]
[1640997684094,0.31890888,46563.0,46561.0,0.72194492]
[1640997684295,0.00891,46567.0,46561.0,0.72194492]
[1640997684296,0.00891,46567.0,46562.0,1.097444]
[1640997684897,0.00391,46567.0,46562.0,0.337444]
[1640997685194,0.00391,46567.0,46562.0,1.05618105]
[1640997685996,0.00391,46567.0,46563.0,0.71873705]
[1640997686249,0.00391,46567.0,46564.0,0.52741145]
[1640997686655,0.00391,46567.0,46564.0,0.74852856]
[1640997686854,0.00391,46567.0,46566.0,1.09125387]
[1640997687053,0.00391,46567.0,46566.0,1.42866487]
[1640997687452,0.00391,46567.0,46566.0,1.78024066]
[1640997687653,0.00391,46567.0,46566.0,3.83968886]
[1640997688251,0.00391,46567.0,46566.0,1.78024066]
[1640997688651,0.00391,46567.0,46566.0,1.42866487]
[1640997688853,0.00391,46567.0,46566.0,1.62866487]
[1640997689053,0.00391,46567.0,46566.0,1.47866487]
[1640997689451,0.00391,46567.0,46566.0,2.69956609]
[1640997689652,0.00391,46567.0,46566.0,2.84956609]
[1640997691608,0.00171,46569.0,46567.0,1.163865]
[1640997691806,0.00171,46569.0,46568.0,1.36705808]
[1640997692006,0.00171,46569.0,46568.0,1.80445508]
[1640997692207,0.00171,46569.0,46568.0,2.0353563]
[1640997692406,0.01032,46569.0,46568.0,2.0353563]
[1640997692808,0.01032,46569.0,46568.0,1.8853563]
[1640997693210,0.01032,46569.0,46568.0,1.9853563]
[1640997693408,0.01032,46569.0,46568.0,1.98663951]
[1640997693614,0.00409787,46574.0,46572.0,0.28409857]
[1640997693852,0.00409787,46574.0,46573.0,0.33736]
[1640997695652,0.09449787,46575.0,46574.0,0.43]
[1640997695850,0.09449787,46575.0,46574.0,0.200145]
[1640997697590,0.09449787,46575.0,46572.0,0.70292317]
[1640997697790,0.09449787,46575.0,46573.0,0.337444]
[1640997698391,0.09449787,46575.0,46573.0,0.61464286]
[1640997699190,0.09449787,46575.0,46574.0,0.00320329]
[1640997699391,0.09449787,46575.0,46574.0,0.20326329]
[1640997699593,0.08449787,46575.0,46574.0,0.68326329]
[1640997699789,0.08449787,46575.0,46574.0,0.20326329]
[1640997703452,0.08457682,46575.0,46574.0,0.20326329]
[1640997705311,0.08447682,46575.0,46574.0,0.20326329]
[1640997705515,0.08447682,46575.0,46574.0,1.52596484]
[1640997705713,0.08447682,46575.0,46574.0,1.72596484]
[1640997706311,0.08447682,46575.0,46574.0,2.15021574]
[1640997706517,0.08447682,46575.0,46574.0,3.29221574]
[1640997706711,0.08447682,46575.0,46574.0,3.06076283]
[1640997707511,0.08447682,46575.0,46574.0,3.06585715]
[1640997707711,0.08447682,46575.0,46574.0,3.06076283]
[1640997708114,0.0003,46581.0,46578.0,1.290042]
[1640997708313,0.0003,46593.0,46578.0,1.290042]
[1640997708314,0.0003,46593.0,46585.0,0.00127958]
[1640997708515,0.0003,46593.0,46589.0,0.199989]
[1640997708751,0.0003,46593.0,46592.0,1.289974]
[1640997709154,0.0003,46593.0,46592.0,1.389974]
[1640997709753,0.0003,46593.0,46592.0,0.299974]
[1640997709953,0.0003,46593.0,46592.0,0.809974]
[1640997710454,0.0003,46597.0,46594.0,0.107288]
[1640997710756,0.0003,46597.0,46595.0,0.25117221]
[1640997711053,0.0003,46597.0,46596.0,0.22115525]
[1640997711255,0.0071,46598.0,46597.0,1.289948]
[1640997711479,0.0404,46608.0,46597.0,1.289948]
[1640997711480,0.0001,46609.0,46598.0,1.427245]
[1640997711657,0.27417366,46617.0,46610.0,0.00124897]
[1640997711658,0.36129901,46615.0,46610.0,0.00124897]
[1640997712252,0.0083586,46615.0,46613.0,0.0012831]
[1640997712507,0.02510802,46628.0,46627.0,1.41862582]
[1640997712702,0.02510802,46628.0,46627.0,0.68735705]
[1640997712903,0.02510802,46628.0,46627.0,0.73735705]
[1640997713500,0.03371802,46628.0,46627.0,1.03068385]
[1640997713699,0.02371802,46628.0,46627.0,1.67068385]
[1640997713899,0.02383416,46628.0,46627.0,1.03068385]
[1640997714100,0.00388973,46630.0,46628.0,0.19945184]
[1640997714303,0.0002,46632.0,46628.0,0.19945184]
[1640997714304,0.0002,46637.0,46630.0,1.08]
[1640997714502,0.0001682,46638.0,46636.0,1.982]
[1640997714701,0.0001682,46638.0,46637.0,0.337367]
[1640997714900,0.0001682,46638.0,46637.0,0.337267]
[1640997715304,0.0001682,46638.0,46637.0,0.337167]
[1640997715516,0.0001682,46638.0,46637.0,1.529167]
[1640997715701,0.0001682,46638.0,46637.0,0.337167]
[1640997715905,0.02648128,46641.0,46637.0,0.337167]
[1640997716103,0.02648128,46641.0,46637.0,0.337067]
[1640997716354,0.02648128,46641.0,46640.0,0.0348]
[1640997716555,0.02648128,46641.0,46640.0,0.22960236]
[1640997716754,0.02148128,46641.0,46640.0,0.22950236]
[1640997717354,0.36715328,46641.0,46632.0,0.00121837]
[1640997717554,0.36715328,46641.0,46631.0,0.00982253]
[1640997717555,0.09999999,46639.0,46631.0,0.00982253]
[1640997717755,0.0001,46639.0,46631.0,0.00982253]
[1640997717953,0.337062,46638.0,46631.0,0.00982253]
[1640997718355,0.337062,46638.0,46628.0,0.00127673]
[1640997718954,0.0001,46639.0,46628.0,0.00127673]
[1640997719356,0.0001,46639.0,46629.0,0.33223478]
[1640997719563,0.0001,46639.0,46629.0,0.42623223]
[1640997719756,0.0001,46639.0,46628.0,0.00127673]
[1640997720307,0.43706199,46638.0,46628.0,0.00127673]
[1640997720509,0.337062,46638.0,46628.0,0.00127673]
[1640997720708,0.30417342,46632.0,46628.0,0.00127673]
[1640997721307,0.25507474,46636.0,46628.0,0.00127673]
[1640997721508,0.0001,46639.0,46628.0,0.00127673]
[1640997721711,0.337062,46638.0,46628.0,0.00127673]
[1640997721909,0.053623,46638.0,46628.0,0.00127673]
[1640997722110,0.0001,46639.0,46628.0,0.00127673]
[1640997722508,0.28378057,46637.0,46628.0,0.00127673]
[1640997722912,0.20774586,46636.0,46628.0,0.00127673]
[1640997723110,0.29152472,46630.0,46628.0,0.00127673]
[1640997723309,0.29152472,46630.0,46627.0,0.34862582]
[1640997723951,0.26137186,46636.0,46627.0,0.34862582]
[1640997724350,0.00010642,46629.0,46627.0,0.34862582]
[1640997724551,0.00010642,46629.0,46628.0,0.337062]
[1640997724755,0.00010642,46629.0,46628.0,0.34023948]
[1640997725552,0.00010642,46629.0,46628.0,0.36928728]
[1640997726553,0.00010642,46629.0,46628.0,0.54241728]
[1640997726955,0.25902576,46641.0,46628.0,0.54241728]
[1640997726956,0.0003,46645.0,46629.0,0.97]
[1640997727800,0.053916,46644.0,46630.0,0.21191067]
[1640997728005,0.0003,46644.0,46635.0,0.32110045]
[1640997728198,0.0003,46644.0,46636.0,0.10223306]
[1640997728700,0.0003,46644.0,46633.0,0.23030001]
[1640997728701,0.0003,46644.0,46630.0,0.23109294]
[1640997728899,0.00891,46644.0,46630.0,0.23109294]
[1640997729102,0.00881,46643.0,46630.0,0.23109294]
[1640997729600,0.31567496,46640.0,46631.0,0.3203265]
[1640997731001,0.31567496,46640.0,46630.0,0.0043686]
[1640997732152,0.00881,46643.0,46636.0,0.34231743]
[1640997732553,0.00881,46643.0,46636.0,0.24526405]
[1640997732752,0.00881,46643.0,46630.0,0.0043686]
[1640997732952,0.00881,46643.0,46632.0,0.09936077]
[1640997733757,0.00881,46643.0,46632.0,0.38385743]
[1640997734156,0.00881,46643.0,46633.0,0.09759649]
[1640997734356,0.00881,46643.0,46634.0,0.10153162]
[1640997734555,0.00881,46643.0,46634.0,0.10074839]
[1640997735018,0.00010468,46642.0,46639.0,0.29738586]
[1640997735213,0.00010468,46642.0,46641.0,0.02354613]
[1640997735414,0.00010468,46642.0,46641.0,1.88150883]
[1640997735812,0.00010468,46642.0,46641.0,0.36060813]
[1640997736112,0.00010468,46642.0,46641.0,0.38965593]
[1640997736311,0.00010468,46642.0,46641.0,0.36740593]
[1640997737313,0.00010468,46642.0,46641.0,0.74133718]
[1640997737513,0.00010468,46642.0,46641.0,2.06424718]
[1640997737914,0.00010468,46642.0,46641.0,0.92224718]
[1640997738114,0.00391468,46643.0,46642.0,2.421327]
[1640997738314,0.00391468,46643.0,46642.0,1.3096547]
[1640997738515,0.00391468,46643.0,46642.0,1.4096547]
[1640997738952,0.00781,46644.0,46643.0,1.377047]
[1640997739152,0.01133263,46646.0,46645.0,2.559032]
[1640997739552,0.01133263,46646.0,46645.0,1.417032]
[1640997739854,0.01133263,46646.0,46645.0,0.337032]
[1640997740052,0.0079342,46646.0,46645.0,0.437032]
[1640997740356,0.95579978,46670.0,46645.0,0.437032]
[1640997740553,0.0098133,46662.0,46655.0,0.053582]
[1640997740855,0.00743827,46672.0,46661.0,0.00124745]
[1640997741056,0.337062,46670.0,46661.0,0.10124744]
[1640997741254,0.337062,46670.0,46661.0,0.00124745]
[1640997741453,0.29035899,46670.0,46661.0,0.00124745]
[1640997741654,0.29035899,46670.0,46661.0,0.10124744]
[1640997741853,0.29035899,46670.0,46661.0,0.09124744]
[1640997742153,0.0205,46671.0,46665.0,0.09124744]
[1640997742354,0.0205,46671.0,46670.0,0.48124744]
[1640997742604,0.0205,46671.0,46670.0,0.81830944]
[1640997742805,0.0205,46671.0,46670.0,0.337062]
[1640997743010,0.0205,46671.0,46669.0,0.00121983]
[1640997743011,0.0205,46671.0,46669.0,0.09246727]
[1640997743202,0.0205,46671.0,46670.0,0.337062]
[1640997743403,0.00713827,46672.0,46671.0,1.08]
[1640997743603,0.00613827,46672.0,46671.0,1.678956]
[1640997743801,0.00593827,46672.0,46671.0,2.9293599]
[1640997744003,0.00593827,46672.0,46671.0,2.3093599]
[1640997744404,3.827e-05,46673.0,46672.0,1.337045]
[1640997744605,0.019036,46677.0,46672.0,0.47953311]
[1640997744803,0.019036,46677.0,46676.0,0.00124441]
[1640997745006,0.019036,46677.0,46671.0,0.33120124]
[1640997745204,0.0001,46680.0,46671.0,0.33120124]
[1640997745402,0.02097788,46683.0,46671.0,0.33120124]
[1640997745403,0.00012565,46676.0,46672.0,0.66]
[1640997745608,0.00012565,46676.0,46672.0,0.38]
[1640997745803,0.00012565,46676.0,46671.0,0.0055519]
[1640997747556,0.00012565,46676.0,46675.0,1.17124744]
[1640997747758,0.00012565,46676.0,46675.0,0.29137785]
[1640997747956,0.0004,46688.0,46676.0,0.337062]
[1640997748158,0.337062,46687.0,46675.0,0.09124744]
[1640997748358,0.0004,46688.0,46678.0,0.00121272]
[1640997748956,0.24345253,46682.0,46675.0,0.58570148]
[1640997749356,0.24345253,46682.0,46674.0,0.58570148]
[1640997749357,0.29702253,46682.0,46674.0,0.58570148]
[1640997749558,0.43598872,46677.0,46674.0,0.58570148]
[1640997749758,0.00875255,46676.0,46674.0,0.58570148]
[1640997750018,0.00875255,46676.0,46671.0,0.6197408]
[1640997750222,0.00875255,46676.0,46667.0,0.82007703]
[1640997750223,1.08,46670.0,46667.0,0.00435]
[1640997750416,1.47941355,46668.0,46665.0,0.57032324]
[1640997750610,0.36204982,46667.0,46665.0,0.57032324]
[1640997750815,0.04505536,46676.0,46665.0,0.57032324]
[1640997750816,0.00123193,46677.0,46670.0,0.07354697]
[1640997751012,0.0999,46681.0,46670.0,0.07354697]
[1640997751214,0.337062,46680.0,46670.0,0.07354697]
[1640997751413,0.053576,46677.0,46671.0,0.09120029]
[1640997751610,0.053576,46677.0,46670.0,0.07354697]
[1640997751611,0.001287,46674.0,46670.0,0.07354697]
[1640997751811,0.001287,46674.0,46671.0,0.33127763]
[1640997752012,0.001287,46674.0,46673.0,0.54124744]
[1640997752213,0.001287,46674.0,46673.0,0.09124744]
[1640997752412,0.001287,46674.0,46671.0,0.33127763]
[1640997752813,0.001287,46674.0,46672.0,0.09124744]
[1640997753214,0.001287,46674.0,46673.0,0.83124744]
[1640997753418,0.004897,46681.0,46674.0,0.65]
[1640997753620,0.004897,46681.0,46673.0,0.09124744]
[1640997753845,0.053572,46680.0,46673.0,0.09124744]
[1640997754047,0.004897,46681.0,46678.0,0.09124744]
[1640997754248,0.004897,46681.0,46672.0,0.0012492]
[1640997754447,0.004897,46681.0,46674.0,0.09124744]
[1640997754648,0.004897,46681.0,46672.0,0.0012492]
[1640997754948,0.34673278,46679.0,46670.0,0.07354697]
[1640997755147,0.35548533,46679.0,46670.0,0.07354697]
[1640997755347,0.337062,46678.0,46673.0,0.00120109]
[1640997755547,0.337062,46674.0,46673.0,0.00120109]
[1640997756148,0.3371754,46674.0,46673.0,0.00120109]
[1640997756849,0.59715893,46674.0,46672.0,6.73e-06]
[1640997757048,0.56855386,46673.0,46670.0,0.07354697]
[1640997757247,1.417062,46671.0,46670.0,0.07354697]
[1640997757499,1.127062,46671.0,46670.0,0.07354697]
[1640997757696,0.337062,46671.0,46670.0,0.07354697]
[1640997757897,1.98958668,46671.0,46670.0,0.07354697]
[1640997758096,0.29778622,46661.0,46660.0,0.00129915]
[1640997758296,0.337062,46661.0,46655.0,0.262623]
[1640997758499,0.47134559,46665.0,46655.0,0.35387044]
[1640997758696,0.337062,46664.0,46655.0,0.35387044]
[1640997759098,0.337062,46664.0,46658.0,0.03373336]
[1640997759297,0.107189,46665.0,46658.0,0.03373336]
[1640997759298,0.053595,46662.0,46658.0,0.03373336]
[1640997759698,0.107178,46670.0,46659.0,0.12133135]
[1640997759898,0.33680395,46669.0,46659.0,0.12133135]
[1640997760100,0.107178,46670.0,46659.0,0.03008391]
[1640997760299,0.337004,46669.0,46659.0,0.03008391]
[1640997760498,0.107178,46670.0,46659.0,0.03008391]
[1640997760700,0.337004,46669.0,46661.0,0.09124744]
[1640997760898,0.053589,46665.0,46662.0,0.5138433]
[1640997761350,0.107178,46670.0,46662.0,0.25031478]
[1640997761550,0.107178,46670.0,46662.0,0.25150733]
[1640997762150,0.053586,46667.0,46662.0,0.00119255]
[1640997762352,0.21485307,46669.0,46662.0,0.00119255]
[1640997762353,0.57598056,46663.0,46662.0,0.00119255]
[1640997762750,0.337004,46663.0,46662.0,0.00119255]
[1640997764852,0.332004,46663.0,46662.0,0.00119255]
[1640997765099,0.53650906,46663.0,46659.0,0.03008391]
[1640997765303,1.470614,46660.0,46659.0,0.03008391]
[1640997765500,1.84672328,46660.0,46659.0,0.03008391]
[1640997765697,0.60830717,46659.0,46656.0,0.00980378]
[1640997765900,1.42576355,46657.0,46656.0,0.00980378]
[1640997766201,1.42576355,46657.0,46639.0,6.09124744]
[1640997766202,1.08,46656.0,46639.0,6.0]
[1640997766401,1.08,46656.0,46641.0,0.00120007]
[1640997766402,0.06237355,46651.0,46641.0,0.00120007]
[1640997766599,0.053621,46651.0,46639.0,6.0]
[1640997766800,0.26813918,46648.0,46639.0,6.0]
[1640997767002,0.3592786,46643.0,46639.0,6.0]
[1640997767398,0.25730378,46640.0,46639.0,6.0]
[1640997768001,0.053624,46641.0,46639.0,6.0]
[1640997768401,0.263624,46641.0,46639.0,6.0]
[1640997770648,0.263624,46641.0,46640.0,1.17124744]
[1640997770846,0.0999,46656.0,46640.0,1.50950028]
[1640997771048,9.921e-05,46657.0,46652.0,0.09124744]
[1640997771846,9.921e-05,46657.0,46650.0,0.00122707]
[1640997771847,0.11701347,46655.0,46650.0,0.00122707]
[1640997772048,0.053604,46654.0,46650.0,0.00122707]
[1640997772250,0.053604,46654.0,46645.0,0.09124744]
[1640997772515,0.053604,46654.0,46651.0,0.09124744]
[1640997773809,0.053604,46654.0,46648.0,0.54546818]
[1640997774012,9.921e-05,46657.0,46653.0,1.17124744]
[1640997774210,9.921e-05,46657.0,46655.0,0.03969315]
[1640997774411,9.921e-05,46657.0,46656.0,1.336955]
[1640997774811,9.921e-05,46657.0,46656.0,1.42820244]
[1640997775008,9.921e-05,46657.0,46656.0,1.74762114]
[1640997775210,9.921e-05,46657.0,46656.0,0.3194187]
[1640997776343,9.921e-05,46657.0,46656.0,0.60518541]
[1640997776549,9.921e-05,46657.0,46656.0,0.3194187]
[1640997776945,9.921e-05,46657.0,46655.0,0.03844]
[1640997777146,9.921e-05,46657.0,46650.0,0.10105141]
[1640997777348,0.00509921,46657.0,46650.0,0.10105141]
[1640997777547,0.00509921,46657.0,46650.0,0.3774643]
[1640997777748,0.053604,46654.0,46650.0,0.10105141]
[1640997777948,0.053604,46654.0,46650.0,0.39216598]
[1640997778148,0.053604,46654.0,46650.0,0.10105141]
[1640997778346,0.053604,46654.0,46650.0,0.09124744]
[1640997778549,0.053604,46654.0,46649.0,0.00125748]
[1640997778747,0.053604,46654.0,46648.0,0.56806196]
[1640997779153,0.053604,46654.0,46644.0,0.31395466]
[1640997779449,0.053604,46654.0,46652.0,0.09124744]
[1640997780704,0.053604,46654.0,46653.0,0.29141454]
[1640997781105,0.00509921,46657.0,46653.0,0.85145272]
[1640997781305,0.00509921,46657.0,46656.0,1.17124744]
[1640997781513,0.00509921,46657.0,46656.0,1.50823444]
[1640997783004,0.00509921,46657.0,46656.0,0.42823444]
[1640997783862,0.0001,46665.0,46663.0,0.25393135]
[1640997784065,0.0001,46665.0,46664.0,0.87124744]
[1640997784268,0.0001,46665.0,46664.0,0.09124744]
[1640997785368,0.0001,46665.0,46657.0,0.09124744]
[1640997785566,0.0001,46665.0,46653.0,0.09124744]
[1640997785567,0.107291,46665.0,46653.0,0.09124744]
[1640997785768,0.107291,46665.0,46651.0,0.22177288]
[1640997785968,0.107291,46665.0,46662.0,0.09124744]
[1640997786167,0.337011,46664.0,46655.0,0.00125876]
[1640997786368,0.107291,46665.0,46657.0,0.32686474]
[1640997787067,0.053694,46665.0,46657.0,0.23730717]
[1640997787271,0.053694,46665.0,46663.0,0.09124744]
[1640997787516,0.337011,46664.0,46663.0,0.09124744]
[1640997787912,0.337011,46664.0,46657.0,0.23730717]
[1640997788111,0.053694,46665.0,46658.0,0.09124744]
[1640997789211,0.053603,46661.0,46658.0,0.09124744]
[1640997789417,0.337011,46660.0,46658.0,0.09124744]
[1640997789612,0.337011,46659.0,46657.0,0.01150263]
[1640997790213,0.053603,46661.0,46657.0,0.01150263]
[1640997790415,0.053603,46661.0,46657.0,0.00168987]
[1640997790616,0.337011,46660.0,46658.0,0.09124744]
[1640997791245,0.24803606,46659.0,46658.0,0.09124744]
[1640997791449,0.58504706,46659.0,46658.0,0.09124744]
[1640997791651,0.58504706,46659.0,46657.0,0.00168987]
[1640997791847,0.337011,46658.0,46657.0,0.00168987]
[1640997792948,0.437011,46658.0,46657.0,0.00168987]
[1640997793149,0.337011,46658.0,46657.0,0.00168987]
[1640997793949,0.04831013,46654.0,46651.0,0.09254607]
[1640997794150,0.053609,46653.0,46651.0,0.09254607]
[1640997794850,0.053609,46653.0,46651.0,0.00129863]
[1640997795413,0.048951,46653.0,46651.0,0.00129863]
[1640997795714,0.048951,46653.0,46646.0,0.09124744]
[1640997795912,0.048951,46653.0,46648.0,0.09124744]
[1640997796113,0.048951,46653.0,46645.0,0.32314077]
[1640997796313,0.048951,46653.0,46652.0,0.09124744]
[1640997798413,0.04831013,46654.0,46652.0,0.09124744]
[1640997799645,0.2433464,46653.0,46652.0,0.09124744]
[1640997801148,0.2433464,46653.0,46645.0,0.1850148]
[1640997801346,0.05361,46649.0,46645.0,0.18627346]
[1640997801645,0.05361,46649.0,46645.0,0.00125866]
[1640997802904,0.10191113,46654.0,46646.0,0.337011]
[1640997803102,0.10191113,46654.0,46645.0,0.22021499]
[1640997803302,0.10165317,46654.0,46645.0,0.00125866]
[1640997805105,0.10165317,46654.0,46644.0,0.25506744]
[1640997805302,0.10165317,46654.0,46644.0,0.256353]
[1640997805904,0.10165317,46654.0,46645.0,0.20954901]
[1640997806106,0.10165317,46654.0,46645.0,0.47813641]
[1640997806368,0.10165317,46654.0,46646.0,0.337011]
[1640997806552,0.04805217,46654.0,46646.0,0.337011]
[1640997806851,0.04805217,46654.0,46652.0,0.31442839]
[1640997807351,0.04805217,46654.0,46653.0,0.0290478]
[1640997807553,0.04805217,46654.0,46653.0,1.4160588]
[1640997808053,0.05164717,46658.0,46653.0,1.4160588]
[1640997808252,0.05164717,46658.0,46657.0,0.0240478]
[1640997809456,0.04664717,46658.0,46657.0,0.0240478]
[1640997811902,0.04664717,46658.0,46652.0,0.61464015]
[1640997812700,0.04664717,46658.0,46652.0,0.6158329]
[1640997814443,0.0001,46665.0,46657.0,0.02533243]
[1640997814645,0.0001,46665.0,46662.0,0.0157357]
[1640997814946,0.214783,46680.0,46663.0,0.204405]
[1640997815142,0.214783,46680.0,46668.0,0.00128429]
[1640997815143,0.00413055,46674.0,46668.0,0.00128429]
[1640997815341,0.00413055,46674.0,46673.0,0.0240478]
[1640997815543,0.34114155,46674.0,46673.0,0.0240478]
[1640997816145,0.39471855,46674.0,46663.0,0.00127277]
[1640997816544,0.29254167,46673.0,46663.0,0.00127277]
[1640997816743,0.29254167,46673.0,46664.0,0.273209]
[1640997816943,0.00413055,46674.0,46664.0,0.273209]
[1640997817344,0.053585,46669.0,46664.0,0.273209]
[1640997817614,0.053585,46669.0,46668.0,0.0240478]
[1640997817810,0.053585,46669.0,46664.0,0.273209]
[1640997818013,0.053585,46669.0,46668.0,0.0202402]
[1640997818211,0.05368521,46669.0,46668.0,0.0202402]